Workbook

Sheet Web form
A1: SabreCom-JSP Rugged System option selector and part number configurator | C1: v4.8 | D1: 2025-02-21 | F1: Hide | G1: Hide | H1: Hide | I1: Hide
A2: Click yellow cell. Then click arrow that appears to the right to choose an option. | F2: for | G2: for | H2: for | I2: for
A3: Options with * are considered "default" options. | F3: Customer | G3: Customer | H3: Customer | I3: Customer
A4: Part number and part description text will automatically fill in based on your selections. | F4: Use | G4: Use | H4: Use | I4: Use
A5: All options must be selected to generate a valid configuration and part number. | F5: For DSC only: Enter details of custom items on the Custom IO tab.
A6: When completed, submit this configuration worksheet to the email address below for a quote or further discussion with our team.
A7: sales@diamondsystems.com
D8: Part number builder text | E8: Part description builder text | F8: Cost | G8: Margin | H8: Price
A9: Base model (no selection required) | D9: SCM-JSP | E9: SabreCom-JSP Rugged System, | F9: =H46+H93 -> 1846 | G9: 0.6 | H9: =ROUND(F9/(1-G9),0) -> 4615
A11: =Options!A1 -> Jasper Carrier Board | B11: Choose One: | D11: =VLOOKUP(B11,Options!A:C,2,FALSE) ->  | E11: =VLOOKUP(B11,Options!A:C,3,FALSE) ->  | F11: =VLOOKUP(B11,Options!A:F,4,FALSE) -> 0 | G11: =VLOOKUP(B11,Options!A:F,5,FALSE) -> 0 | H11: =VLOOKUP(B11,Options!A:F,6,FALSE) -> 0
A13: =Options!G1 -> Processor & RAM | B13: Choose One: | D13: =VLOOKUP(B13,Options!G:I,2,FALSE) ->  | E13: =VLOOKUP(B13,Options!G:I,3,FALSE) ->  | F13: =VLOOKUP(B13,Options!G:L,4,FALSE) -> 0 | G13: =VLOOKUP(B13,Options!G:L,5,FALSE) -> 0 | H13: =VLOOKUP(B13,Options!G:L,6,FALSE) -> 0
A15: =Options!M1 -> I/O Connector Layout | B15: Choose One: | D15: =VLOOKUP(B15,Options!M:O,2,FALSE) ->  | E15: =VLOOKUP(B15,Options!M:R,3,FALSE) ->  | F15: =VLOOKUP(B15,Options!M:R,4,FALSE) -> 0 | G15: =VLOOKUP(B15,Options!M:R,5,FALSE) -> 0 | H15: =VLOOKUP(B15,Options!M:R,6,FALSE) -> 0
A17: =Options!S1 -> Power Supply | B17: Choose One: | D17: =VLOOKUP(B17,Options!S:X,2,FALSE) ->  | E17: =VLOOKUP($B17,Options!$S:$X,3,FALSE) ->  | F17: =VLOOKUP($B17,Options!$S:$X,4,FALSE) -> 0 | G17: =VLOOKUP($B17,Options!$S:$X,5,FALSE) -> 0 | H17: =VLOOKUP($B17,Options!$S:$X,6,FALSE) -> 0
A19: =Options!Y1 -> Integrated SSD | B19: Choose One: | D19: =VLOOKUP(B19,Options!Y:AD,2,FALSE) ->  | E19: =VLOOKUP(B19,Options!Y:AD,3,FALSE) ->  | F19: =VLOOKUP(B19,Options!Y:AD,4,FALSE) -> 0 | G19: =VLOOKUP(B19,Options!Y:AD,5,FALSE) -> 0 | H19: =VLOOKUP(B19,Options!Y:AD,6,FALSE) -> 0
A21: =Options!AE1 -> Operating System | B21: Choose One: | D21: =VLOOKUP(B21,Options!AE:AJ,2,FALSE) ->  | E21: =VLOOKUP(B21,Options!AE:AJ,3,FALSE) ->  | F21: =VLOOKUP(B21,Options!AE:AJ,4,FALSE) -> 0 | G21: =VLOOKUP(B21,Options!AE:AJ,5,FALSE) -> 0 | H21: =VLOOKUP(B21,Options!AE:AJ,6,FALSE) -> 0
A23: =Options!AK1 -> I/O Expansion | B23: Choose One: | D23: =VLOOKUP(B23,Options!AK:AM,2,FALSE) ->  | E23: =VLOOKUP(B23,Options!AK:AM,3,FALSE) ->  | F23: =IF($D$23="-01",0,'Custom IO'!G19) -> 0 | G23: =IF($D$23="-01",0,'Custom IO'!H19) -> 0 | H23: =IF($D$23="-01",0,'Custom IO'!I19) -> 0 | I23: These numbers come
I24: from Custom IO tab.
B25: <Enter additional I/O details here. Cell will expand as needed.>
F26: 0 | G26: 0.55 | H26: =ROUND(F26/(1-G26),0) -> 0 | I26: Items not specified elsewhere
A27: Your system part number: | B27: =_xlfn.CONCAT(D9:D23) -> SCM-JSP | F27: 300 | H27: 500 | I27: Assembly / test labor
A28: Your system description: | B28: =_xlfn.CONCAT(E9:E23) -> SabreCom-JSP Rugged System, | F28: =SUM(F9:F27) -> 2146 | H28: =SUM(H9:H27) -> 5115 | I28: Calculated price
F29: Cost | H29: 2000 | I29: Bonus
H30: 50 | I30: Rounding
H31: =MROUND(H29+H28,H30) -> 7100 | I31: Qty 1 price
H32: =H31-F28 -> 4954 | I32: Margin $
H33: =H32/H31 -> 0.6977464789 | I33: Margin %
G34: 0.04 | H34: =MROUND(H31*(1-G34),H30) -> 6800 | I34: Qty 5 price
H35: =H34-F28 -> 4654 | I35: Margin before commission
H36: =H35/H34 -> 0.6844117647 | I36: Margin before commission
G37: 0.18 | H37: =MROUND(H31*(1-G37),H30) -> 5800 | I37: Distributor price
H38: =H37-F28 -> 3654 | I38: Margin after commission
H39: =H38/H37 -> 0.63 | I39: Margin after commission
F41: Internal cables, no DAQ (included in base model cost)
F42: 6982070 | G42: Power Dist. | H42: 25
F43: 6987021 | G43: Power in | H43: 100
F44: 6987074 | G44: HDMI | H44: 175
F45: 6987107 | G45: I/O | H45: =H62 -> 554 | I45: See detail below
F46: Total | H46: =SUM(H42:H45) -> 854
F48: Internal cables with DAQ, 1 USB 3.0 (for reference only)
F49: 6982070 | G49: Power Dist. | H49: 25
F50: 6987021 | G50: Power in | H50: 100
F51: 6987074 | G51: HDMI | H51: 175
F52: 6987107 | G52: I/O | H52: =H62 -> 554 | I52: See detail below
G53: DAQ | H53: =H74 -> 470 | I53: See detail below
F54: 6987075 | G54: USB 3 | H54: =H68 -> 239 | I54: See detail below
F55: Total | H55: =SUM(H49:H54) -> 1563
F58: 6987107 J3 main I/O cable cost (included in base model cost)
F59: Connector | H59: 100
F60: Cables | G60: 7 | H60: =G60*I60 -> 70 | I60: 10
F61: Wires | G61: 64 | H61: =G61*I61 -> 384 | I61: 6
F62: Total | H62: =SUM(H59:H61) -> 554
F64: 6987075 USB 3.0 cable cost model (qty 1 included in base model cost)
F65: Connector | H65: 175
F66: Cables | G66: 1 | H66: =G66*I66 -> 10 | I66: 10
F67: Wires | G67: 9 | H67: =G67*I67 -> 54 | I67: 6
F68: Total | H68: =SUM(H65:H67) -> 239
F70: DAQ cable cost model (included in options costs)
F71: Connector | G71: 2 | H71: =G71*I71 -> 150 | I71: 75
F72: Cables | G72: 2 | H72: =G72*I72 -> 20 | I72: 10
F73: Wires | G73: 50 | H73: =G73*I73 -> 300 | I73: 6
F74: Total | H74: =SUM(H71:H73) -> 470
F76: Generic cable cost model (enter items in yellow)
F77: Connector | H77: 100
F78: Cables | G78: 2 | H78: =G78*I78 -> 20 | I78: 10
F79: Wires | G79: 50 | H79: =G79*I79 -> 300 | I79: 6
F80: Total cost | H80: =SUM(H77:H79) -> 420
F82: Dummy receptacle cost: | H82: 25
F84: Enclosure cost model (included in base model cost)
F85: 7820160 Main body | H85: 390 | I85: ACE quote 1-3
F86: 7820161 Top | H86: 220 | I86: ACE quote 1-3
F87: 7820162 Bottom | H87: 55 | I87: ACE quote 1-3
F88: Enclosure gaskets | H88: 40 | I88: $20 x 2
F89: Connector mounts | H89: 50 | I89: ($5 + $3) x 6
F90: Connector fasteners | H90: =3*4*6 -> 72 | I90: $3 x 4 x 6
F91: Misc. fasteners | H91: 5
F92: Connector covers | H92: =40*4 -> 160 | I92: $40 x 4
F93: Total | H93: =SUM(H85:H92) -> 992

Sheet Custom IO (hidden)
A1: Custom I/O specifications
A2: Delete all old content in yellow cells before beginning!
A3: Enter all relevant information in columns B, C, D, E, F, H
A4: Enter either DSC part number or Vendor and Vendor part number for each item
A5: Include cables for all I/O boards. An estimated cost can be used if actual cost is not available. Worksheet below can be used to estimate custom cable cost.
A6: Do not adjust values in gray or green cells.
A7: Green totals will be transferred automatically to the main cost / price worksheet.
A9: Item | B9: Description | C9: Vendor | D9: Vendor PN | E9: Cost | F9: Qty | G9: Total | H9: Margin | I9: Price adder
A10: 1 | G10: =F10*E10 -> 0 | H10: 0.45 | I10: =G10/(1-H10) -> 0
A11: 2 | G11: =F11*E11 -> 0 | H11: 0.55 | I11: =G11/(1-H11) -> 0
A12: 3 | G12: 0 | H12: 0.55 | I12: 0
A13: 4 | G13: 0 | H13: 0.55 | I13: 0
A14: 5 | G14: 0 | H14: 0.45 | I14: 0
A15: 6 | G15: 0 | H15: 0.55 | I15: 0
A16: 7 | G16: =F16*E16 -> 0 | H16: 0.55 | I16: =G16/(1-H16) -> 0
A17: 8 | G17: =F17*E17 -> 0 | H17: 0.55 | I17: =G17/(1-H17) -> 0
A18: 9 | G18: 0 | H18: 0.55 | I18: 0
G19: =SUM(G10:G18) -> 0 | H19: =IFERROR((I19-G19)/I19,0) -> 0 | I19: =SUM(I10:I18) -> 0
G20: Total cost | I20: Total price
C23: Custom cable cost calculation - duplicate this section as needed for additional cables
C24: Enter all data in yellow. (Unit costs shown are only examples.)
C25: Count up number of contacts needed for all I/O signals and enter on right.
C26: Estimates are sufficient.
C27: If wiring is being added to an exising cable, then omit the main connector by setting Qty to 0. Otherwise set it to 1.
C28: Part Num TBD | D28: Enter cable description here
C29: Item | D29: Part no. | E29: Qty | F29: Unit | G29: Total | H29: Labor cost calculation
C30: Labor cost | E30: 1 | F30: =K33 -> 85 | G30: =E30*F30 -> 85 | H30: Item | I30: Qty | J30: Unit cost | K30: Total
C31: Main connector | E31: 1 | F31: 75 | G31: =E31*F31 -> 75 | H31: Contacts | I31: 15 | J31: 5 | K31: =J31*I31 -> 75
C32: Component or cable 1 | E32: 2 | F32: 10 | G32: 20 | H32: Misc | I32: 1 | J32: 10 | K32: =J32*I32 -> 10
C33: Component or cable 2 | E33: 0 | F33: 10 | G33: 0 | H33: Total | K33: =SUM(K31:K32) -> 85
C34: Component or cable 3 | E34: 0 | F34: 10 | G34: =E34*F34 -> 0
C35: Total unit cost | G35: =SUM(G30:G34) -> 180
C38: Cable example | I38: Main (D38999) connector suggested costs
C39: 38999 D size connector with 2 branches to connect to 2 2x5 pin headers on PCBA | I39: Size | J39: 22D contacts | K39: Cost
C40: Each branch has 10 wires, total contacts = 20, enter on right side | I40: A | J40: 6 | K40: 50
C41: Main connector: qty = 1, select cost from table at right if appropriate | I41: B | J41: 13 | K41: 50
C42: Cable 1 and 2: qty = 1 each, cost = $10; alternatively: cable 1 = qty 2, cable 2 not used, qty = 0 | I42: C | J42: 22 | K42: 50
C43: Cable 3: not used, qty = 0 | I43: D | J43: 37 | K43: 75
I44: E | J44: 55 | K44: 75
I45: F | J45: 66 | K45: 75
I46: G | J46: 79 | K46: 100
I47: H | J47: 100 | K47: 100

Sheet External cables (hidden)
A1: External cable cost calculator
A2: Enter data in all yellow cells. Delete all data not needed.
A3: Do not modify gray and green cells.
A4: Data shown for J1 J2 J3 is standard for all configurations except in special cases.
A5: Data shown for J4 J5 J6 is for example only. Delete existing data when starting a new project.
A6: In general, you can use the shortcut: external cable cost = internal cable cost. Check with Engineering in case of doubt or unusual situations.
A7: For each cable:
A8: > If the cable already exists, use standard cost in ERP system.
A9: > If the cable does not exist, use cost of matching internal cable if possible.
A10: > Otherwise use cable template at right to estimate the cost of the cable.
A11: Enter each cable indnividually. If the same cable is used more than once, enter it on as many rows as there are cables. | J11: Cable cost calculator
O12: D38999 connector suggested costs
A13: Ref Des | B13: Exist/New | C13: Exist P/N | D13: Description | E13: Qty | F13: Unit$ | G13: Total Cost | J13: Cable for J4 (fills table automatically) | O13: Size | P13: 22D contacts | Q13: Cost
A14: J1 | B14: Exist | C14: 6987092 | D14: Cable, Geode, External, J1 power in | E14: 1 | F14: 100 | G14: =F14*E14 -> 100 | J14: VGA, CAN | K14: Qty | L14: Unit | M14: Total | O14: A | P14: 6 | Q14: 50
A15: J2 | B15: Exist | C15: 6987095 | D15: Cable, Geode Osbourne, External, J4 HDMI | E15: 1 | F15: 314 | G15: =F15*E15 -> 314 | J15: System connector | K15: 1 | L15: 75 | M15: =K15*L15 -> 75 | O15: B | P15: 13 | Q15: 50
A16: J3 | B16: Exist | C16: 6987106 | D16: Cable External D3899926WF35PN to 2x Eth, 2xUSB2.0, 4x Serial, Audio, Utility | E16: 1 | F16: 562 | G16: 562 | J16: # branches | K16: 2 | L16: 10 | M16: =K16*L16 -> 20 | O16: C | P16: 22 | Q16: 50
A17: J4 | D17: =J14 -> VGA, CAN | F17: =M19 -> 180 | G17: 0 | J17: Total no. contacts | K17: 15 | L17: 5 | M17: =K17*L17 -> 75 | O17: D | P17: 37 | Q17: 75
A18: J5 | D18: =J22 -> GPIO | F18: =M27 -> 260 | G18: 0 | J18: Miscellaneous costs | K18: 1 | L18: 10 | M18: 10 | O18: E | P18: 55 | Q18: 75
A19: J6 | D19: =J30 -> Serial + CAN + GbE | F19: =M35 -> 450 | G19: 0 | J19: Total cost (enter on left) | M19: =SUM(M15:M18) -> 180 | O19: F | P19: 66 | Q19: 75
A20: Other | G20: 0 | O20: G | P20: 79 | Q20: 100
A21: Other | G21: 0 | J21: Cable for J5 (fills table automatically) | O21: H | P21: 100 | Q21: 100
A22: Other | G22: 0 | J22: GPIO | K22: Qty | L22: Unit | M22: Total
A23: Other | G23: 0 | J23: System connector | K23: 1 | L23: 50 | M23: =K23*L23 -> 50
B24: =COUNTA(B14:B23) -> 3 | C24: # cables | F24: Total cost | G24: =SUM(G14:G23) -> 976 | J24: # branches | K24: 2 | L24: 10 | M24: =K24*L24 -> 20
F25: Margin % | G25: 0.5 | J25: Total no. contacts | K25: 36 | L25: 5 | M25: 180
F26: Margin $ | G26: =G27-G24 -> 974 | J26: Miscellaneous costs | K26: 1 | L26: 10 | M26: 10
F27: Cable Kit Price (qty 1 end user) | G27: =MROUND(G24/(1-G25),10) -> 1950 | J27: Total cost (enter on left) | M27: =SUM(M23:M26) -> 260
F28: Distributor discount | G28: 0.15
F29: Distribuor price (qty 1) | G29: =MROUND(G27*(1-G28),10) -> 1660 | J29: Cable for J6 (fills table automatically)
F30: DSC Margin on Distributor price | G30: =(G29-G24)/G29 -> 0.4120481928 | J30: Serial + CAN + GbE | K30: Qty | L30: Unit | M30: Total
J31: System connector | K31: 1 | L31: 75 | M31: =K31*L31 -> 75
J32: # branches | K32: 10 | L32: 10 | M32: =K32*L32 -> 100
J33: Total no. contacts | K33: 53 | L33: 5 | M33: 265
J34: Miscellaneous costs | K34: 1 | L34: 10 | M34: 10
J35: Total cost (enter on left) | M35: =SUM(M31:M34) -> 450
J37: Other cable (enter manually in table)
J38: <Description> | K38: Qty | L38: Unit | M38: Total
J39: System connector | K39: 1 | L39: 50 | M39: =K39*L39 -> 50
J40: # branches | K40: 2 | L40: 10 | M40: =K40*L40 -> 20
J41: Total no. contacts | K41: 20 | L41: 5 | M41: 100
J42: Miscellaneous costs | K42: 1 | L42: 10 | M42: 10
J43: Total cost (enter on left) | M43: =SUM(M39:M42) -> 180

Sheet NRE (hidden)
A1: NRE Calculation | B1: 250 | C1: Daily rate
A3: NRE activities | B3: Days | C3: Cost
A4: Cable design | B4: 2 | C4: =$B$1*B4 -> 500
A5: Enclosure updates | B5: 0 | C5: =$B$1*B5 -> 0
A6: Test plan | B6: 1 | C6: =$B$1*B6 -> 250
A7: Test software | B7: 3 | C7: =$B$1*B7 -> 750
A8: Documentation | B8: 1 | C8: =$B$1*B8 -> 250
A10: Total cost | C10: =SUM(C4:C9) -> 1750
A11: Margin % | C11: 0.4
A12: NRE charge | C12: =MROUND(C10/(1-C11),50) -> 2900

Sheet Options (hidden)
A1: Jasper Carrier Board | B1: Carrier | C1: Carrier | D1: Carrier | E1: Carrier | F1: Carrier | G1: Processor & RAM | H1: COM | I1: COM | J1: COM | K1: COM | L1: COM | M1: I/O Connector Layout | N1: Connectors | O1: Connectors | P1: Connectors | Q1: Connectors | R1: Connectors | S1: Power Supply | T1: Power | U1: Power | V1: Power | W1: Power | X1: Power | Y1: Integrated SSD | Z1: SSD | AA1: SSD | AB1: SSD | AC1: SSD | AD1: SSD | AE1: Operating System | AF1: OS | AG1: OS | AH1: OS | AI1: OS | AJ1: OS | AK1: I/O Expansion | AL1: Expansion | AM1: Expansion
A2: Choose one: | G2: Choose one: | M2: Choose one: | S2: Choose one: | Y2: Choose one: | AE2: Choose one: | AK2: Choose one:
A3: *With DIO (baseboard JSP-BB02D) | B3: 02D | D3: 400 | E3: 0.55 | F3: =ROUND(D3/(1-E3),0) -> 889 | G3: *i7-1185GRE 32G | H3: -1185-32 | I3: 1185GRE CPU, 32GB RAM, | J3: 1391 | K3: 0.4 | L3: =ROUND(J3/(1-K3),0) -> 2318 | M3: 3 USB 3.0 | N3: -U3 | O3: 3 USB 3.0, | P3: ='Web form'!H68*3 -> 717 | Q3: 0.5 | R3: =ROUND(P3/(1-Q3),0) -> 1434 | S3: *MIL with isolation | T3: J | U3: MIL Iso Power 24V Out, | V3: 964 | W3: 0.5 | X3: =ROUND(V3/(1-W3),0) -> 1928 | Y3: *1TB | Z3: 1 | AA3: 1TB SSD, | AB3: 135 | AC3: 0.5 | AD3: =ROUND(AB3/(1-AC3),0) -> 270 | AE3: *Linux 64-bit | AF3: -LNX | AG3: Linux | AH3: 75 | AI3: 0.5 | AJ3: =ROUND(AH3/(1-AI3),0) -> 150 | AK3: *My system has no additional I/O requirements | AL3: -01
A4: With DAQ (baseboard JSP-BB03A) | B4: 03A | C4: DAQ, | D4: 550 | E4: 0.55 | F4: =ROUND(D4/(1-E4),0) -> 1222 | G4: i7-1185G7E-64 | H4: -1185G7E-64 | I4: 1185G7E CPU, 64GB RAM, | J4: 1043 | K4: 0.45 | L4: =ROUND(J4/(1-K4),0) -> 1896 | M4: *2 USB 3.0 + 1 38999-D | N4: -U2D | O4: 2 USB 3.0 + 1 38999-D, | P4: =2*'Web form'!H68+'Web form'!H82 -> 503 | Q4: 0.5 | R4: =ROUND(P4/(1-Q4),0) -> 1006 | S4: MIL without isolation | T4: N | U4: MIL Power 24V Out, | V4: 648 | W4: 0.5 | X4: =ROUND(V4/(1-W4),0) -> 1296 | Y4: 2TB | Z4: 2 | AA4: 2TB SSD, | AB4: 237 | AC4: 0.5 | AD4: =ROUND(AB4/(1-AC4),0) -> 474 | AE4: Windows 10 64-bit | AF4: -W10 | AG4: Windows 10 | AH4: =139+AH3 -> 214 | AI4: 0.5 | AJ4: =ROUND(AH4/(1-AI4),0) -> 428 | AK4: My system requires additional I/O (list below) | AL4: -XX (requires factory review) | AM4: (requires factory review)
G5: i7-1365URE 32G | H5: -1365-32 | I5: 1365 CPU, 32GB RAM, | J5: 1417 | K5: 0.45 | L5: 2576 | M5: 1 USB 3.0 + 2 38999-D | N5: -UD2 | O5: 1 USB 3.0 + 2 38999-D, | P5: ='Web form'!H68+'Web form'!H82*2 -> 289 | Q5: 0.5 | R5: 578 | S5: None | T5: X | V5: 0 | W5: 0.5 | X5: =ROUND(V5/(1-W5),0) -> 0 | Y5: 512GB | Z5: 5 | AA5: 512GB SSD, | AB5: 76 | AC5: 0.5 | AD5: 152
G6: i7-1365URE 64G | H6: -1365-64 | I6: 1365 CPU, 64GB RAM, | J6: 1566 | K6: 0.45 | L6: 2847 | M6: 3 38999-D | N6: -D3 | O6: 3 38999-D, | P6: ='Web form'!H82*3 -> 75 | Q6: 0.5 | R6: =ROUND(P6/(1-Q6),0) -> 150 | Y6: 128GB | Z6: 8 | AA6: 128GB SD, | AB6: 30 | AC6: 0.5 | AD6: 60
G7: i7-11865MRE 32E | H7: -11865-32E | I7: 11865MRE CPU, 32GB ECC RAM, | J7: 1501 | K7: 0.45 | L7: 2729 | M7: 2 DAQ + 1 38999-D | N7: -AD1 | O7: 1 38999-D, | P7: ='Web form'!H74+'Web form'!H82 -> 495 | Q7: 0.5 | R7: =ROUND(P7/(1-Q7),0) -> 990
M8: 1 DAQ + 2 38999-D | N8: -AD2 | O8: 2 38999-D, | P8: ='Web form'!H74+'Web form'!H82*2 -> 520 | Q8: 0.5 | R8: =ROUND(P8/(1-Q8),0) -> 1040
M9: 2 DAQ + 1 USB 3.0 | N9: -AU | O9: 1 USB 3.0, | P9: ='Web form'!H68+'Web form'!H74 -> 709 | Q9: 0.5 | R9: =ROUND(P9/(1-Q9),0) -> 1418

Sheet Instructions (hidden)
A1: Instructions
A2: Press Reset button on Web form tab to clear form.
A3: Select all features on Web Form. Each option must have a selection.
A4: If any custom I/O is needed, enter it on the Custom IO tab. If no custom IO is needed, be sure the list is empty so the cost and price are zero.
A5: Any custom cabling can be calculated using the cable cost calculator on the Custom IO tab. This section can be duplicated as needed.
A6: Custom IO cost and price are automatically transferred to the main form.
A7: Any special costs not covered elsewhere can be added in the yellow line on the Web form.
A8: Base model cost includs cost of cables J1 power in, J2 HDMI, and J3 main I/O. Other cable costs except for custom cables are included in the Connector options.
A9: If DAQ connector option is selected, the J4 and J5 DAQ cable costs will be included in the cost value shown.
